{"text_format":"1","workbook":"xlsx","n_sheets":9,"sheets":["مخزن الرئيسي","فرع 1","فرع 2","فرع 3","فرع 4","فرع 5","أصناف متحركة","أصناف راكدة","مقارنة الاصناف"],"not_rendered":{"charts":0,"images":0,"macros":1,"external_links":0,"defined_names":0,"comments":0,"pivot_tables":0},"unopened":[],"bounds":{"document_bytes":16777216,"sheet_cells":100000,"rows_first":2000,"rows_last":500,"rows_between":2000,"halvings":0,"cell_chars":16384,"cell_head_chars":4096},"cells_cut":0,"cells_raw":0,"read":"whole","date_system":"1900"}

{"sheet":"مخزن الرئيسي","index":0,"n_rows":9,"n_cols":4,"rows_kept":9,"cut":false,"hidden":false,"merged":[]}
["اسم الصنف","الكمية","تاريخ الحركة","اسم المخزن"]
["صنف A",12,"2025-11-20","مخزن الرئيسي"]
["صنف B",13,"2024-10-15","مخزن الرئيسي"]
["صنف B",14,"2024-11-20","مخزن الرئيسي"]
["صنف A",15,"2024-10-18","مخزن الرئيسي"]
["صنف A",16,"2025-11-20","مخزن الرئيسي"]
["صنف B",17,"2024-09-26","مخزن الرئيسي"]
["صنف B",18,"2024-10-20","مخزن الرئيسي"]
["صنف  C",19,"2024-08-15","مخزن الرئيسي"]

{"sheet":"فرع 1","index":1,"n_rows":7,"n_cols":4,"rows_kept":7,"cut":false,"hidden":false,"merged":[]}
["اسم الصنف","الكمية","تاريخ الحركة","اسم المخزن"]
["صنف A",100,"2024-11-20","فرع 1"]
["صنف B",50,"2024-10-15","فرع 1"]
["صنف B",10,"2024-11-20","فرع 1"]
["صنف A",22,"2024-10-15","فرع 1"]
["صنف B",10,"2024-11-20","فرع 1"]
["صنف A",22,"2024-10-15","فرع 1"]

{"sheet":"فرع 2","index":2,"n_rows":7,"n_cols":4,"rows_kept":7,"cut":false,"hidden":false,"merged":[]}
["اسم الصنف","الكمية","تاريخ الحركة","اسم المخزن"]
["صنف A",100,"2024-11-20","فرع 2"]
["صنف B",50,"2024-10-15","فرع 2"]
["صنف B",10,"2024-11-20","فرع 2"]
["صنف A",22,"2024-10-15","فرع 2"]
["صنف B",10,"2024-11-20","فرع 2"]
["صنف A",16,"2024-11-15","فرع 2"]

{"sheet":"فرع 3","index":3,"n_rows":7,"n_cols":4,"rows_kept":7,"cut":false,"hidden":false,"merged":[]}
["اسم الصنف","الكمية","تاريخ الحركة","اسم المخزن"]
["صنف A",100,"2024-11-20","فرع 3"]
["صنف B",50,"2024-10-15","فرع 3"]
["صنف B",10,"2024-11-20","فرع 3"]
["صنف A",22,"2024-10-15","فرع 3"]
["صنف B",10,"2024-11-20","فرع 3"]
["صنف A",18,"2024-09-15","فرع 3"]

{"sheet":"فرع 4","index":4,"n_rows":7,"n_cols":4,"rows_kept":7,"cut":false,"hidden":false,"merged":[]}
["اسم الصنف","الكمية","تاريخ الحركة","اسم المخزن"]
["صنف A",100,"2024-11-20","فرع 4"]
["صنف B",50,"2024-10-15","فرع 4"]
["صنف B",10,"2024-11-20","فرع 4"]
["صنف A",22,"2024-10-15","فرع 4"]
["صنف B",10,"2024-11-20","فرع 4"]
["صنف A",35,"2024-08-15","فرع 4"]

{"sheet":"فرع 5","index":5,"n_rows":7,"n_cols":4,"rows_kept":7,"cut":false,"hidden":false,"merged":[]}
["اسم الصنف","الكمية","تاريخ الحركة","اسم المخزن"]
["صنف A",100,"2024-11-20","فرع 5"]
["صنف B",50,"2024-10-15","فرع 5"]
["صنف B",10,"2024-11-20","فرع 5"]
["صنف A",22,"2024-10-15","فرع 5"]
["صنف B",10,"2024-11-20","فرع 5"]
["صنف A",25,"2024-06-15","فرع 5"]

{"sheet":"أصناف متحركة","index":6,"n_rows":32,"n_cols":5,"rows_kept":32,"cut":false,"hidden":false,"merged":[]}
["المخزن","عدد الأصناف المتحركة"]
["مخزن الرئيسي",3]
["فرع 1",3]
["فرع 2",4]
["فرع 3",3]
["فرع 4",3]
["فرع 5",3]
["المخزن","اسم الصنف","الكمية","تاريخ آخر حركة","عدد الأيام"]
["مخزن الرئيسي","صنف A",12,"2025-11-20",-302]
["مخزن الرئيسي","صنف B",14,"2024-11-20",63]
["مخزن الرئيسي","صنف A",16,"2025-11-20",-302]
["المخزن","اسم الصنف","الكمية","تاريخ آخر حركة","عدد الأيام"]
["فرع 1","صنف A",100,"2024-11-20",63]
["فرع 1","صنف B",10,"2024-11-20",63]
["فرع 1","صنف D",10,"2024-11-20",63]
["المخزن","اسم الصنف","الكمية","تاريخ آخر حركة","عدد الأيام"]
["فرع 2","صنف A",100,"2024-11-20",63]
["فرع 2","صنف B",10,"2024-11-20",63]
["فرع 2","صنف B",10,"2024-11-20",63]
["فرع 2","صنف A",16,"2024-11-15",68]
["المخزن","اسم الصنف","الكمية","تاريخ آخر حركة","عدد الأيام"]
["فرع 3","صنف A",100,"2024-11-20",63]
["فرع 3","صنف B",10,"2024-11-20",63]
["فرع 3","صنف B",10,"2024-11-20",63]
["المخزن","اسم الصنف","الكمية","تاريخ آخر حركة","عدد الأيام"]
["فرع 4","صنف A",100,"2024-11-20",63]
["فرع 4","صنف B",10,"2024-11-20",63]
["فرع 4","صنف B",10,"2024-11-20",63]
["المخزن","اسم الصنف","الكمية","تاريخ آخر حركة","عدد الأيام"]
["فرع 5","صنف A",100,"2024-11-20",63]
["فرع 5","صنف B",10,"2024-11-20",63]
["فرع 5","صنف B",10,"2024-11-20",63]

{"sheet":"أصناف راكدة","index":7,"n_rows":32,"n_cols":5,"rows_kept":32,"cut":false,"hidden":false,"merged":[]}
["التصنيف","عدد الأصناف الراكدة",{"$error":"#N/A"}]
["مخزن الرئيسي",5]
["فرع 1",3]
["فرع 2",2]
["فرع 3",3]
["فرع 4",3]
["فرع 5",3]
["المخزن","اسم الصنف","الكمية","تاريخ آخر حركة","عدد الأيام"]
["مخزن الرئيسي","صنف B",13,"2024-10-15",99]
["مخزن الرئيسي","صنف A",15,"2024-10-18",96]
["مخزن الرئيسي","صنف B",17,"2024-09-26",118]
["مخزن الرئيسي","صنف B",18,"2024-10-20",94]
["مخزن الرئيسي","صنف C",19,"2024-08-15",160]
["المخزن","اسم الصنف","الكمية","تاريخ آخر حركة","عدد الأيام"]
["فرع 1","صنف B",50,"2024-10-15",99]
["فرع 1","صنف A",22,"2024-10-15",99]
["فرع 1","صنف A",22,"2024-10-15",99]
["المخزن","اسم الصنف","الكمية","تاريخ آخر حركة","عدد الأيام"]
["فرع 2","صنف B",50,"2024-10-15",99]
["فرع 2","صنف A",22,"2024-10-15",99]
["المخزن","اسم الصنف","الكمية","تاريخ آخر حركة","عدد الأيام"]
["فرع 3","صنف B",50,"2024-10-15",99]
["فرع 3","صنف D",22,"2024-10-15",99]
["فرع 3","صنف A",18,"2024-09-15",129]
["المخزن","اسم الصنف","الكمية","تاريخ آخر حركة","عدد الأيام"]
["فرع 4","صنف B",50,"2024-10-15",99]
["فرع 4","صنف A",22,"2024-10-15",99]
["فرع 4","صنف A",35,"2024-08-15",160]
["المخزن","اسم الصنف","الكمية","تاريخ آخر حركة","عدد الأيام"]
["فرع 5","صنف B",50,"2024-10-15",99]
["فرع 5","صنف A",22,"2024-10-15",99]
["فرع 5","صنف A",25,"2024-06-15",221]

{"sheet":"مقارنة الاصناف","index":8,"n_rows":16,"n_cols":16,"rows_kept":16,"cut":false,"hidden":false,"merged":[[8,1,8,3],[8,4,8,6],[8,7,8,9],[8,13,8,15],[8,10,8,12]]}
["التصنيف","عدد الأصناف الراكدة","عدد الأصناف المتحركة",null,null,null,null,null,null,"مقترح بالمعادلات بُناء على شيت أصناف متحركة وأصناف راكدة"]
["مخزن الرئيسي",5,5]
["فرع 1",3,3,null,null,null,null,null,null,"ملحوظة يوجد تكرار لأصتاف في المخازن سواء متحركة أو راكدة"]
["فرع 2",2,2,null,null,null,null,null,null,"يجب ألا يتكرر الصنف "]
["فرع 3",3,3]
["فرع 4",3,3,null,null,null,null,null,null,"تم تعديل صنف D  في فرع 1 أصناف متحركة",null,null,null,null,"المعادلات سليمة"]
["فرع 5",3,3,null,null,null,null,null,null,"تم تعديل صنف E  في فرع 3 أصناف راكدة"]
[]
[null,"صنف A",null,null,"صنف B",null,null,"صنف C",null,null,"صنف E",null,null,"صنف D"]
["الاصناف","أصناف المتحركة","أصناف الراكدة","عدد الأيام","أصناف المتحركة","أصناف الراكدة","عدد الأيام","أصناف المتحركة","أصناف المتحركة","عدد الأيام","أصناف المتحركة","أصناف المتحركة","عدد الأيام","أصناف المتحركة","أصناف المتحركة","عدد الأيام"]
["مخزن الرئيسي",{"$f":"INDEX(جدولي[الكمية],MATCH(1,(جدولي[المخزن]=$A11)*(جدولي[اسم الصنف]=$B$9),0),0)","v":12},{"$f":"INDEX(جدولي_1[الكمية],MATCH(1,(جدولي_1[المخزن]=$A11)*(جدولي_1[اسم الصنف]=$B$9),0),0)","v":15},{"$f":"INDEX(جدولي_1[عدد الأيام],MATCH(1,(جدولي_1[المخزن]=$A11)*(جدولي_1[اسم الصنف]=$B$9),0),0)","v":96},{"$f":"INDEX(جدولي[الكمية],MATCH(1,(جدولي[المخزن]=$A11)*(جدولي[اسم الصنف]=$E$9),0),0)","v":14},{"$f":"INDEX(جدولي_1[الكمية],MATCH(1,(جدولي_1[المخزن]=$A11)*(جدولي_1[اسم الصنف]=$E$9),0),0)","v":13},{"$f":"INDEX(جدولي_1[عدد الأيام],MATCH(1,(جدولي_1[المخزن]=$A11)*(جدولي_1[اسم الصنف]=$E$9),0),0)","v":99},{"$f":"IFERROR(INDEX(جدولي[الكمية],MATCH(1,(جدولي[المخزن]=$A11)*(جدولي[اسم الصنف]=$H$9),0),0),0)","v":0},{"$f":"IFERROR(INDEX(جدولي_1[الكمية],MATCH(1,(جدولي_1[المخزن]=$A11)*(جدولي_1[اسم الصنف]=$H$9),0),0),0)","v":19},{"$f":"IFERROR(INDEX(جدولي_1[عدد الأيام],MATCH(1,(جدولي_1[المخزن]=$A11)*(جدولي_1[اسم الصنف]=$H$9),0),0),0)","v":160},{"$f":"IFERROR(INDEX(جدولي[الكمية],MATCH(1,(جدولي[المخزن]=$A11)*(جدولي[اسم الصنف]=$K$9),0),0),0)","v":0},{"$f":"IFERROR(INDEX(جدولي_1[الكمية],MATCH(1,(جدولي_1[المخزن]=$A11)*(جدولي_1[اسم الصنف]=$K$9),0),0),0)","v":0},{"$f":"IFERROR(INDEX(جدولي_1[عدد الأيام],MATCH(1,(جدولي_1[المخزن]=$A11)*(جدولي_1[اسم الصنف]=$K$9),0),0),0)","v":0},{"$f":"IFERROR(INDEX(جدولي[الكمية],MATCH(1,(جدولي[المخزن]=$A11)*(جدولي[اسم الصنف]=$N$9),0),0),0)","v":0},{"$f":"IFERROR(INDEX(جدولي_1[الكمية],MATCH(1,(جدولي_1[المخزن]=$A11)*(جدولي_1[اسم الصنف]=$N$9),0),0),0)","v":0},{"$f":"IFERROR(INDEX(جدولي_1[عدد الأيام],MATCH(1,(جدولي_1[المخزن]=$A11)*(جدولي_1[اسم الصنف]=$N$9),0),0),0)","v":0}]
["فرع 1",{"$f":"INDEX(جدولي[الكمية],MATCH(1,(جدولي[المخزن]=$A12)*(جدولي[اسم الصنف]=$B$9),0),0)","v":100},{"$f":"INDEX(جدولي_1[الكمية],MATCH(1,(جدولي_1[المخزن]=$A12)*(جدولي_1[اسم الصنف]=$B$9),0),0)","v":22},{"$f":"INDEX(جدولي_1[عدد الأيام],MATCH(1,(جدولي_1[المخزن]=$A12)*(جدولي_1[اسم الصنف]=$B$9),0),0)","v":99},{"$f":"INDEX(جدولي[الكمية],MATCH(1,(جدولي[المخزن]=$A12)*(جدولي[اسم الصنف]=$E$9),0),0)","v":10},{"$f":"INDEX(جدولي_1[الكمية],MATCH(1,(جدولي_1[المخزن]=$A12)*(جدولي_1[اسم الصنف]=$E$9),0),0)","v":50},{"$f":"INDEX(جدولي_1[عدد الأيام],MATCH(1,(جدولي_1[المخزن]=$A12)*(جدولي_1[اسم الصنف]=$E$9),0),0)","v":99},{"$f":"IFERROR(INDEX(جدولي[الكمية],MATCH(1,(جدولي[المخزن]=$A12)*(جدولي[اسم الصنف]=$H$9),0),0),0)","v":0},{"$f":"IFERROR(INDEX(جدولي_1[الكمية],MATCH(1,(جدولي_1[المخزن]=$A12)*(جدولي_1[اسم الصنف]=$H$9),0),0),0)","v":0},{"$f":"IFERROR(INDEX(جدولي_1[عدد الأيام],MATCH(1,(جدولي_1[المخزن]=$A12)*(جدولي_1[اسم الصنف]=$H$9),0),0),0)","v":0},{"$f":"IFERROR(INDEX(جدولي[الكمية],MATCH(1,(جدولي[المخزن]=$A12)*(جدولي[اسم الصنف]=$K$9),0),0),0)","v":0},{"$f":"IFERROR(INDEX(جدولي_1[الكمية],MATCH(1,(جدولي_1[المخزن]=$A12)*(جدولي_1[اسم الصنف]=$K$9),0),0),0)","v":0},{"$f":"IFERROR(INDEX(جدولي_1[عدد الأيام],MATCH(1,(جدولي_1[المخزن]=$A12)*(جدولي_1[اسم الصنف]=$K$9),0),0),0)","v":0},{"$f":"IFERROR(INDEX(جدولي[الكمية],MATCH(1,(جدولي[المخزن]=$A12)*(جدولي[اسم الصنف]=$N$9),0),0),0)","v":10},{"$f":"IFERROR(INDEX(جدولي_1[الكمية],MATCH(1,(جدولي_1[المخزن]=$A12)*(جدولي_1[اسم الصنف]=$N$9),0),0),0)","v":0},{"$f":"IFERROR(INDEX(جدولي_1[عدد الأيام],MATCH(1,(جدولي_1[المخزن]=$A12)*(جدولي_1[اسم الصنف]=$N$9),0),0),0)","v":0}]
["فرع 2",{"$f":"INDEX(جدولي[الكمية],MATCH(1,(جدولي[المخزن]=$A13)*(جدولي[اسم الصنف]=$B$9),0),0)","v":100},{"$f":"INDEX(جدولي_1[الكمية],MATCH(1,(جدولي_1[المخزن]=$A13)*(جدولي_1[اسم الصنف]=$B$9),0),0)","v":22},{"$f":"INDEX(جدولي_1[عدد الأيام],MATCH(1,(جدولي_1[المخزن]=$A13)*(جدولي_1[اسم الصنف]=$B$9),0),0)","v":99},{"$f":"INDEX(جدولي[الكمية],MATCH(1,(جدولي[المخزن]=$A13)*(جدولي[اسم الصنف]=$E$9),0),0)","v":10},{"$f":"INDEX(جدولي_1[الكمية],MATCH(1,(جدولي_1[المخزن]=$A13)*(جدولي_1[اسم الصنف]=$E$9),0),0)","v":50},{"$f":"INDEX(جدولي_1[عدد الأيام],MATCH(1,(جدولي_1[المخزن]=$A13)*(جدولي_1[اسم الصنف]=$E$9),0),0)","v":99},{"$f":"IFERROR(INDEX(جدولي[الكمية],MATCH(1,(جدولي[المخزن]=$A13)*(جدولي[اسم الصنف]=$H$9),0),0),0)","v":0},{"$f":"IFERROR(INDEX(جدولي_1[الكمية],MATCH(1,(جدولي_1[المخزن]=$A13)*(جدولي_1[اسم الصنف]=$H$9),0),0),0)","v":0},{"$f":"IFERROR(INDEX(جدولي_1[عدد الأيام],MATCH(1,(جدولي_1[المخزن]=$A13)*(جدولي_1[اسم الصنف]=$H$9),0),0),0)","v":0},{"$f":"IFERROR(INDEX(جدولي[الكمية],MATCH(1,(جدولي[المخزن]=$A13)*(جدولي[اسم الصنف]=$K$9),0),0),0)","v":0},{"$f":"IFERROR(INDEX(جدولي_1[الكمية],MATCH(1,(جدولي_1[المخزن]=$A13)*(جدولي_1[اسم الصنف]=$K$9),0),0),0)","v":0},{"$f":"IFERROR(INDEX(جدولي_1[عدد الأيام],MATCH(1,(جدولي_1[المخزن]=$A13)*(جدولي_1[اسم الصنف]=$K$9),0),0),0)","v":0},{"$f":"IFERROR(INDEX(جدولي[الكمية],MATCH(1,(جدولي[المخزن]=$A13)*(جدولي[اسم الصنف]=$N$9),0),0),0)","v":0},{"$f":"IFERROR(INDEX(جدولي_1[الكمية],MATCH(1,(جدولي_1[المخزن]=$A13)*(جدولي_1[اسم الصنف]=$N$9),0),0),0)","v":0},{"$f":"IFERROR(INDEX(جدولي_1[عدد الأيام],MATCH(1,(جدولي_1[المخزن]=$A13)*(جدولي_1[اسم الصنف]=$N$9),0),0),0)","v":0}]
["فرع 3",{"$f":"INDEX(جدولي[الكمية],MATCH(1,(جدولي[المخزن]=$A14)*(جدولي[اسم الصنف]=$B$9),0),0)","v":100},{"$f":"INDEX(جدولي_1[الكمية],MATCH(1,(جدولي_1[المخزن]=$A14)*(جدولي_1[اسم الصنف]=$B$9),0),0)","v":18},{"$f":"INDEX(جدولي_1[عدد الأيام],MATCH(1,(جدولي_1[المخزن]=$A14)*(جدولي_1[اسم الصنف]=$B$9),0),0)","v":129},{"$f":"INDEX(جدولي[الكمية],MATCH(1,(جدولي[المخزن]=$A14)*(جدولي[اسم الصنف]=$E$9),0),0)","v":10},{"$f":"INDEX(جدولي_1[الكمية],MATCH(1,(جدولي_1[المخزن]=$A14)*(جدولي_1[اسم الصنف]=$E$9),0),0)","v":50},{"$f":"INDEX(جدولي_1[عدد الأيام],MATCH(1,(جدولي_1[المخزن]=$A14)*(جدولي_1[اسم الصنف]=$E$9),0),0)","v":99},{"$f":"IFERROR(INDEX(جدولي[الكمية],MATCH(1,(جدولي[المخزن]=$A14)*(جدولي[اسم الصنف]=$H$9),0),0),0)","v":0},{"$f":"IFERROR(INDEX(جدولي_1[الكمية],MATCH(1,(جدولي_1[المخزن]=$A14)*(جدولي_1[اسم الصنف]=$H$9),0),0),0)","v":0},{"$f":"IFERROR(INDEX(جدولي_1[عدد الأيام],MATCH(1,(جدولي_1[المخزن]=$A14)*(جدولي_1[اسم الصنف]=$H$9),0),0),0)","v":0},{"$f":"IFERROR(INDEX(جدولي[الكمية],MATCH(1,(جدولي[المخزن]=$A14)*(جدولي[اسم الصنف]=$K$9),0),0),0)","v":0},{"$f":"IFERROR(INDEX(جدولي_1[الكمية],MATCH(1,(جدولي_1[المخزن]=$A14)*(جدولي_1[اسم الصنف]=$K$9),0),0),0)","v":0},{"$f":"IFERROR(INDEX(جدولي_1[عدد الأيام],MATCH(1,(جدولي_1[المخزن]=$A14)*(جدولي_1[اسم الصنف]=$K$9),0),0),0)","v":0},{"$f":"IFERROR(INDEX(جدولي[الكمية],MATCH(1,(جدولي[المخزن]=$A14)*(جدولي[اسم الصنف]=$N$9),0),0),0)","v":0},{"$f":"IFERROR(INDEX(جدولي_1[الكمية],MATCH(1,(جدولي_1[المخزن]=$A14)*(جدولي_1[اسم الصنف]=$N$9),0),0),0)","v":22},{"$f":"IFERROR(INDEX(جدولي_1[عدد الأيام],MATCH(1,(جدولي_1[المخزن]=$A14)*(جدولي_1[اسم الصنف]=$N$9),0),0),0)","v":99}]
["فرع 4",{"$f":"INDEX(جدولي[الكمية],MATCH(1,(جدولي[المخزن]=$A15)*(جدولي[اسم الصنف]=$B$9),0),0)","v":100},{"$f":"INDEX(جدولي_1[الكمية],MATCH(1,(جدولي_1[المخزن]=$A15)*(جدولي_1[اسم الصنف]=$B$9),0),0)","v":22},{"$f":"INDEX(جدولي_1[عدد الأيام],MATCH(1,(جدولي_1[المخزن]=$A15)*(جدولي_1[اسم الصنف]=$B$9),0),0)","v":99},{"$f":"INDEX(جدولي[الكمية],MATCH(1,(جدولي[المخزن]=$A15)*(جدولي[اسم الصنف]=$E$9),0),0)","v":10},{"$f":"INDEX(جدولي_1[الكمية],MATCH(1,(جدولي_1[المخزن]=$A15)*(جدولي_1[اسم الصنف]=$E$9),0),0)","v":50},{"$f":"INDEX(جدولي_1[عدد الأيام],MATCH(1,(جدولي_1[المخزن]=$A15)*(جدولي_1[اسم الصنف]=$E$9),0),0)","v":99},{"$f":"IFERROR(INDEX(جدولي[الكمية],MATCH(1,(جدولي[المخزن]=$A15)*(جدولي[اسم الصنف]=$H$9),0),0),0)","v":0},{"$f":"IFERROR(INDEX(جدولي_1[الكمية],MATCH(1,(جدولي_1[المخزن]=$A15)*(جدولي_1[اسم الصنف]=$H$9),0),0),0)","v":0},{"$f":"IFERROR(INDEX(جدولي_1[عدد الأيام],MATCH(1,(جدولي_1[المخزن]=$A15)*(جدولي_1[اسم الصنف]=$H$9),0),0),0)","v":0},{"$f":"IFERROR(INDEX(جدولي[الكمية],MATCH(1,(جدولي[المخزن]=$A15)*(جدولي[اسم الصنف]=$K$9),0),0),0)","v":0},{"$f":"IFERROR(INDEX(جدولي_1[الكمية],MATCH(1,(جدولي_1[المخزن]=$A15)*(جدولي_1[اسم الصنف]=$K$9),0),0),0)","v":0},{"$f":"IFERROR(INDEX(جدولي_1[عدد الأيام],MATCH(1,(جدولي_1[المخزن]=$A15)*(جدولي_1[اسم الصنف]=$K$9),0),0),0)","v":0},{"$f":"IFERROR(INDEX(جدولي[الكمية],MATCH(1,(جدولي[المخزن]=$A15)*(جدولي[اسم الصنف]=$N$9),0),0),0)","v":0},{"$f":"IFERROR(INDEX(جدولي_1[الكمية],MATCH(1,(جدولي_1[المخزن]=$A15)*(جدولي_1[اسم الصنف]=$N$9),0),0),0)","v":0},{"$f":"IFERROR(INDEX(جدولي_1[عدد الأيام],MATCH(1,(جدولي_1[المخزن]=$A15)*(جدولي_1[اسم الصنف]=$N$9),0),0),0)","v":0}]
["فرع 5",{"$f":"INDEX(جدولي[الكمية],MATCH(1,(جدولي[المخزن]=$A16)*(جدولي[اسم الصنف]=$B$9),0),0)","v":100},{"$f":"INDEX(جدولي_1[الكمية],MATCH(1,(جدولي_1[المخزن]=$A16)*(جدولي_1[اسم الصنف]=$B$9),0),0)","v":22},{"$f":"INDEX(جدولي_1[عدد الأيام],MATCH(1,(جدولي_1[المخزن]=$A16)*(جدولي_1[اسم الصنف]=$B$9),0),0)","v":99},{"$f":"INDEX(جدولي[الكمية],MATCH(1,(جدولي[المخزن]=$A16)*(جدولي[اسم الصنف]=$E$9),0),0)","v":10},{"$f":"INDEX(جدولي_1[الكمية],MATCH(1,(جدولي_1[المخزن]=$A16)*(جدولي_1[اسم الصنف]=$E$9),0),0)","v":50},{"$f":"INDEX(جدولي_1[عدد الأيام],MATCH(1,(جدولي_1[المخزن]=$A16)*(جدولي_1[اسم الصنف]=$E$9),0),0)","v":99},{"$f":"IFERROR(INDEX(جدولي[الكمية],MATCH(1,(جدولي[المخزن]=$A16)*(جدولي[اسم الصنف]=$H$9),0),0),0)","v":0},{"$f":"IFERROR(INDEX(جدولي_1[الكمية],MATCH(1,(جدولي_1[المخزن]=$A16)*(جدولي_1[اسم الصنف]=$H$9),0),0),0)","v":0},{"$f":"IFERROR(INDEX(جدولي_1[عدد الأيام],MATCH(1,(جدولي_1[المخزن]=$A16)*(جدولي_1[اسم الصنف]=$H$9),0),0),0)","v":0},{"$f":"IFERROR(INDEX(جدولي[الكمية],MATCH(1,(جدولي[المخزن]=$A16)*(جدولي[اسم الصنف]=$K$9),0),0),0)","v":0},{"$f":"IFERROR(INDEX(جدولي_1[الكمية],MATCH(1,(جدولي_1[المخزن]=$A16)*(جدولي_1[اسم الصنف]=$K$9),0),0),0)","v":0},{"$f":"IFERROR(INDEX(جدولي_1[عدد الأيام],MATCH(1,(جدولي_1[المخزن]=$A16)*(جدولي_1[اسم الصنف]=$K$9),0),0),0)","v":0},{"$f":"IFERROR(INDEX(جدولي[الكمية],MATCH(1,(جدولي[المخزن]=$A16)*(جدولي[اسم الصنف]=$N$9),0),0),0)","v":0},{"$f":"IFERROR(INDEX(جدولي_1[الكمية],MATCH(1,(جدولي_1[المخزن]=$A16)*(جدولي_1[اسم الصنف]=$N$9),0),0),0)","v":0},{"$f":"IFERROR(INDEX(جدولي_1[عدد الأيام],MATCH(1,(جدولي_1[المخزن]=$A16)*(جدولي_1[اسم الصنف]=$N$9),0),0),0)","v":0}]